Cogmind - Beta 10.2 @@@ ROGUE MODE // 2021.06.16 @ 20:49:49 Player: Sanctumkeeper Result: Destroyed by G-34 Mercenary with Small Laser Performance ------------- Evolutions (0) 0 Regions Visited (2) 400 Robots Destroyed (21) 105 Value Destroyed (642) 642 Prototype IDs (0) 0 Alien Tech Used (0) 0 Bonus (0) 0 TOTAL SCORE: 1147 Bonus ------- None Cogmind --------- Core Integrity 0/250 Matter 229/300 Energy 160/160 System Corruption 0% Temperature Cool (6) Movement Treading (160) Location -10/Mines Parts ------- > --- POWER (1) -------- Light Nuclear Core > --- PROPULSION (2) --- Light Treads Light Treads > --- UTILITY (2) ------ Small Storage Unit Medium Storage Unit > --- WEAPON (2) ------- (None) > --- INVENTORY (10) --- Light Nuclear Core Light Treads Light Treads Light Armor Plating Medium Laser Medium Laser Peak State ------------ > --- POWER ------------ Light Nuclear Core > --- PROPULSION ------- Light Treads Light Treads > --- UTILITY ---------- Small Storage Unit Small Storage Unit > --- WEAPON ----------- EM Pulse Gun Medium Laser > --- INVENTORY -------- Light Nuclear Core Light Treads Light Treads Light Treads Medium Laser Medium Laser Medium Laser Medium Laser [Rating: 10] Favorites ----------- Power Light Nuclear Core Engine Light Ion Engine Power Core Light Nuclear Core Propulsion Light Treads Treads Light Treads Utility Small Storage Unit Storage Small Storage Unit Weapon EM Pulse Gun Energy Gun EM Pulse Gun Ballistic Gun Light Assault Rifle Build | -11 -10 -10 ------- Run | Scr Mat Min Slots Evolved . | . . . Power . | . . . Propulsion . | . . . Utility . | . . . Weapon . | . . . Parts Attached 26 | 6 15 5 Power 6 | 1 4 1 Engine 2 | 1 1 . Core 4 | . 3 1 Reactor . | . . . Propulsion 8 | 2 4 2 Treads 8 | 2 4 2 Leg . | . . . Wheel . | . . . Hover . | . . . Flight . | . . . Utility 3 | 1 2 . Device . | . . . Storage 3 | 1 2 . Processor . | . . . Hackware . | . . . Protection . | . . . Artifact . | . . . Weapon 9 | 2 5 2 Energy Gun 8 | 2 4 2 Energy Cannon . | . . . Ballistic Gun 1 | . 1 . Ballistic Cannon . | . . . Launcher . | . . . Special Weapon . | . . . Impact Weapon . | . . . Slashing Weapon . | . . . Piercing Weapon . | . . . Special Melee Weapon . | . . . Unidentified Prototypes . | . . . Parts Lost 13 | . 7 6 Power 1 | . 1 . Propulsion 3 | . 1 2 Utility . | . . . Weapon 9 | . 5 4 Highest Loss Streak 5 | . 3 5 Average Slot Usage (%) 94 | . 95 85 Engine 7 | . 8 . Core 6 | . 5 14 Treads 27 | . 27 25 Storage 27 | . 26 28 Energy Gun 22 | . 23 16 Ballistic Gun 1 | . 2 . Naked Turns . | . . . Heaviest Build 21 | 11 21 21 Greatest Support 40 | 40 40 40 Greatest Overweight (x) 5 | . 1 5 Average Overweight (x) . | . . . Largest Inventory Capacity 10 | 6 10 10 Average Capacity 8 | 5 8 10 Most Carried 10 | 4 10 10 Average Carried 7 | 2 7 9 Final Capacity 10 | 6 10 10 Final Carried 10 | 4 10 6 Class Distribution -------------------- 100% | Mutant Dominant Class ---------------- Mutant | -10/Materials Mutant | -10/Mines Resources | -11 -10 -10 ----------- Run | Scr Mat Min Matter Collected 465 | 191 225 49 Remotely . | . . . Salvage Created 900 | . 693 207 Parts 51 | . 43 8 Haulers Intercepted 2 | . 2 . Recyclers Shooed 2 | . 2 . Parts Field Recycled . | . . . Retrieved Matter . | . . . Parts Self-Destructed . | . . . Prevented . | . . . Kills | -11 -10 -10 ------- Run | Scr Mat Min Combat Hostiles Destroyed 18 | . 14 4 Melee 1 | . 1 . Guns 16 | . 13 3 AOE 1 | . . 1 Classes Destroyed 4 | . 4 . Hauler 2 | . 2 . Operator 1 | . 1 . Swarmer 3 | . 3 . Grunt 15 | . 11 4 Best Kill Streak 7 | . 7 2 Combat Bots Only 7 | . 7 2 Max Kills in Single Turn 2 | . 1 2 Gunslinging . | . . . Exploded 1 | . . 1 Melee 1 | . 1 . Uniques/NPCs Destroyed . | . . . Combat | -11 -10 -10 -------- Run | Scr Mat Min Damage Taken 1550 | . 885 665 Core 256 | . 98 158 Absorbed by Shields . | . . . Core Remaining (%) 100 | 100 . . Volleys Fired 86 | . 62 24 Largest 2 | . 2 2 Hottest 90 | . 90 90 Shots Fired 140 | . 99 41 Gun 140 | . 99 41 Cannon . | . . . Launcher . | . . . Special . | . . . Kinetic 29 | . 29 . Thermal 46 | . 25 21 Explosive . | . . . Electromagnetic 65 | . 45 20 Robot Hit Streak 13 | . 13 12 Robot Miss Streak 3 | . 3 3 Penetration Max . | . . . Secondary Targets 4 | . 3 1 Max Gunslinging Chain 1 | . 1 1 Shots Hit Robots 93 | . 62 31 Core Hits 47 | . 37 10 Critical Hits . | . . . Critical Kills . | . . . Critical Parts Destroyed . | . . . Melee Attacks . | . . . Impact . | . . . Slashing . | . . . Piercing . | . . . Sneak Attacks . | . . . Combat Hostiles . | . . . Follow-up Attacks . | . . . Damage Inflicted 1047 | . 752 295 Guns 977 | . 729 248 Cannons . | . . . Explosions 44 | . . 44 Melee . | . . . Ramming 26 | . 23 3 Kinetic 153 | . 153 . Thermal 331 | . 200 131 Explosive . | . . . Electromagnetic 537 | . 376 161 Impact . | . . . Slashing . | . . . Piercing . | . . . Highest Corruption . | . . . Average Corruption . | . . . Corruption Purged . | . . . Overload Shots . | . . . Overflow Damage 86 | . 86 . Projectiles . | . . . Explosions 86 | . 86 . Melee . | . . . Knockbacks . | . . . Impact . | . . . Kinetic . | . . . Secondary . | . . . Self-Inflicted Damage 137 | . 99 38 Shots 2 | . 1 1 Rammed 14 | . 13 1 Targets Rammed 14 | . 13 1 Kicked . | . . . Crushed . | . . . Highest Temperature 489 | . 390 489 Average Temperature 155 | . 108 230 Received Heat Transfer 726 | . 378 348 Effects 8 | . 1 7 Shutdowns 3 | . 1 2 Interference 3 | . . 3 Matter Decay 2 | . . 2 Siege Activations . | . . . Robots Corrupted . | . . . Combat Hostiles . | . . . Parts Fried 2 | . 2 . Impact Corruptions . | . . . Robots Melted . | . . . Combat Hostiles . | . . . Parts Melted 2 | . 1 1 Heat Transferred 901 | . 592 309 Parts Sabotaged . | . . . Parts Stolen . | . . . Parts Stripped . | . . . Power Chain Reactions 1 | . . 1 Missiles Intercepted . | . . . Alert | -11 -10 -10 ------- Run | Scr Mat Min Peak Influence 220 | . 220 95 Initial 5 | . . 5 Average 86 | . 96 45 Maximum Alert Level 1 | . 1 . Low Security (%) 88 | 100 85 100 Level 1 11 | . 14 . Level 2 . | . . . Level 3 . | . . . Level 4 . | . . . Level 5 . | . . . High Security . | . . . Max Security . | . . . Squads Dispatched 4 | . 4 . Investigation 1 | . 1 . Extermination . | . . . Reinforcement 3 | . 3 . Assault . | . . . Garrison . | . . . Intercept . | . . . Construction Impeded . | . . . Haulers Reinforced . | . . . Stealth | -11 -10 -10 --------- Run | Scr Mat Min Distress Signals . | . . . Communications Jammed . | . . . Distress Signals . | . . . Times Spotted 38 | . 32 6 Peak Tracking Total 6 | . 6 3 Tactical Retreats . | . . . Traps | -11 -10 -10 ------- Run | Scr Mat Min Traps Triggered 3 | . 3 . Indirectly . | . . . Trap Hack Attempts . | . . . Triggered . | . . . Disarmed . | . . . Reprogrammed . | . . . Reused . | . . . Traps Extracted . | . . . Installed . | . . . Triggered . | . . . Machines | -11 -10 -10 ---------- Run | Scr Mat Min Machines Disabled 3 | . 3 . Max in Single Turn 3 | . 3 . Machines Sabotaged . | . . . Garrisons Compromised . | . . . Overloaded Fab Kills . | . . . Fab Network Shutdowns . | . . . Hacking | -11 -10 -10 --------- Run | Scr Mat Min Machines Accessed 3 | . 3 . Terminals 3 | . 3 . Fabricators . | . . . Repair Stations . | . . . Recycling Units . | . . . Scanalyzers . | . . . Garrison Access . | . . . Total Hacks 6 | . 6 . Successful 3 | . 3 . Failed 3 | . 3 . Catastrophic . | . . . Database Lockouts . | . . . Manual 6 | . 6 . Terminals 6 | . 6 . Fabricators . | . . . Repair Stations . | . . . Recycling Units . | . . . Scanalyzers . | . . . Garrison Access . | . . . Terminal Hacks 1 | . 1 . Zone Layout 1 | . 1 . Fabricator Hacks . | . . . Repair Station Hacks . | . . . Recycling Unit Hacks . | . . . Scanalyzer . | . . . Garrison Access Hacks . | . . . Unauthorized Hacks 2 | . 2 . Terminals 2 | . 2 . Botnet 2 | . 2 . Fabricators . | . . . Repair Stations . | . . . Recycling Units . | . . . Scanalyzers . | . . . Garrison Access . | . . . Data Cores Recovered . | . . . Used . | . . . Hacking Detections 2 | . 2 . Full Trace Events . | . . . Feedback Events . | . . . Feedback Blocked . | . . . Robot Schematics Acquired . | . . . Robots Built . | . . . Matter . | . . . Time . | . . . Total Robot Build Rating . | . . . Part Schematics Acquired . | . . . Parts Built . | . . . Matter . | . . . Time . | . . . Total Part Build Rating . | . . . Parts Repaired . | . . . Time . | . . . Parts Recycled . | . . . Recycled Matter . | . . . Retrieved Matter . | . . . Retrieved Components . | . . . Parts Scanalyzed . | . . . Part Schematics Acquired . | . . . Parts Damaged . | . . . Bothacking | -11 -10 -10 ------------ Run | Scr Mat Min Used RIF Installer . | . . . Robots Hacked . | . . . Non-combat . | . . . Combat . | . . . Robot Hacks Applied . | . . . Relay Couplers Released . | . . . Robots Rewired . | . . . Allies Hacked . | . . . Hacks Repelled . | . . . Allies | -11 -10 -10 -------- Run | Scr Mat Min Total Allies . | . . . Largest Group . | . . . Highest-Rated Group . | . . . Highest-Rated Ally . | . . . Total Orders . | . . . Ally Attacks . | . . . Total Damage . | . . . Kills . | . . . Allies Corrupted . | . . . Allies Melted . | . . . Intel | -11 -10 -10 ------- Run | Scr Mat Min Robot Analysis Total . | . . . Derelict Logs Recovered . | . . . Drone Launches . | . . . Drone Recoveries . | . . . Exploration | -11 -10 -10 ------------- Run | Scr Mat Min Turns Passed 1627 | 61 1344 222 Spaces Moved 817 | 32 694 91 Core 3 | 2 . 1 Treads 814 | 30 694 90 Legs . | . . . Wheels . | . . . Hover . | . . . Flight . | . . . Fastest Speed 50 | 50 160 160 Average Speed 159 | 153 160 161 Slowest Speed 300 | 160 180 300 Overloaded Moves . | . . . Propulsion Burnouts . | . . . Robots Hopped . | . . . Cave-ins Triggered . | . . . Exploration Rate (%) 46 | 4 97 38 Regions Visited 2 Branch Regions 1 Pre-discovered Areas . | . . . Known Exits Taken . | . . . Unknown Exits Taken 2 | 1 1 . Scrap Searched 1 | . . 1 Spaces Dug . | . . . Terrain Destroyed 10 | . 7 3 Melee . | . . . Projectile . | . . . AOE 10 | . 7 3 Terrain Rammed . | . . . Walls Destroyed . | . . . Machines Disabled . | . . . Actions | -11 -10 -10 --------- Run | Scr Mat Min Total 992 | 41 826 125 Wait 27 | . 24 3 Move 815 | 31 693 91 Hop . | . . . Pick Up 17 | 4 13 . Fast Attach 15 | 6 9 . Attach 8 | . 4 4 Detach . | . . . Swap 3 | . 2 1 Drop 7 | . 6 1 Fire 86 | . 62 24 Melee . | . . . Ram . | . . . Kick . | . . . Crush 14 | . 13 1 Escape Stasis . | . . . Rewire . | . . . Trap . | . . . Miscellaneous . | . . . Route ------- -11/Scrapyard -10/Materials (discovered 5 exits: [*Mat x3] / [*Min x2]) -10/Mines History --------- Turn | Location | Event 37 | -11/Scrapyard | Discovered new exit (range 14) 62 | -11/Scrapyard | Entered Materials 281 | -10/Materials | Discovered new exit (range 6) 307 | -10/Materials | Build established: Mutant 385 | -10/Materials | Destroyed 7 combat bots 407 | -10/Materials | Lost 3 parts (3w) 567 | -10/Materials | Discovered new exit (range 15) 876 | -10/Materials | Discovered new exit (range 12) 1103 | -10/Materials | Discovered new exit (range 8) 1231 | -10/Materials | Discovered new exit (range 12) 1406 | -10/Materials | Entered Mines 1417 | -10/Mines | Core integrity fell below 50% 1570 | -10/Mines | Core integrity fell below 20% 1628 | -10/Mines | Destroyed by G-34 Mercenary with Small Laser Last Messages --------------- 01578_ R-06 Scavenger collects Particle Gun. 01582_ Overheating: Matter decay (-34). 01582_ U-05 Engineer lays Concrete. 01582_ R-06 Scavenger collects Sml. Laser. 01583_ U-05 Engineer lays Concrete. 01585_ Power failure, Lgt. Nuclear Core shutdown. 01586_ Overheating: Matter decay (-61). 01586_ U-05 Engineer lays Concrete. 01586_ EM Pulse Gun destroyed. 01587_ U-05 Engineer lays Concrete. 01587_ Acquired 39 matter. 01588_ U-05 Engineer lays Concrete. 01592_ U-05 Engineer builds a Wall. 01596_ U-05 Engineer lays Concrete. 01597_ U-05 Engineer builds a Wall. 01601_ Med. Laser destroyed. 01601_ U-05 Engineer lays Concrete. 01602_ Lgt. Treads destroyed. 01602_ U-05 Engineer lays Concrete. 01611_ U-05 Engineer builds a Wall. Map ----- +----------------------------------------------------+ | ???????????????????????????????????????? | | ???????????????????????????????????????? | | ???????????????????????????????????????? | | ???????????????????????????????????????? | | ???????????????????????????????????????? | | ???????????????????????????????????????? | | ???????????????????????????????????????? | | ???????????????????????????????????????? | | ???????????????????????????????????????? | | ???????????????????????????????????????? | | ???????????????????????????????????????? | | ?????????????????????????##????????????? | | ????????????????????????? ##??????????? | | ????????????????????????? #??????????? | | ????????????????????????? #??????????? | | ?######?????????????????? #??????????? | | # ##????????????????? #??????????? | | #????????????????# #??????????? | | #????????????????# #??????????? | | #???????????????## ##?????????? | | ## #??????????????## #?????????? | | ### ##??????????????# ##????????? | | %### #???????????????# ##### #??? | | ##??????????????# #??? | | #####??????????# #????? | | ##?######### @ #????? | | "# #?# g #?????? | | #### #?# g ##?????? | | ##??# ### r####### ##??????? | | ##???# ## #?????## ##???????? | | ?????## #???????######????????? | | ??????## #?????????????????????? | | ???????###########?????????????????????? | | ???????????????????????????????????????? | | | | | | | | | | | | | | | | | | | | | | | | | | | | | | | | | +----------------------------------------------------+ Best States ------------- Heat Dissipation 25 Energy Generation 14 Energy Capacity 250 Matter Stores 300 Matter Capacity 300 Sight Range 16 Terrain Scan Density 10 Evasion (%) 40 Recoil Reduction 2 Item Schematics ----------------- None Robot Schematics ------------------ None Fabricated ------------ Nothing Alien Tech Used ----------------- None Achievements -------------- None Challenges ------------ None Game ------ Seed DeepCryofiberNullifier Manual? 0 Play Time 00:09:53 Cumulative 127.8 hours Start 2021.06.16 @ 20:41:07 End 2021.06.16 @ 20:49:49 Sessions 1 Manual Loads 0 Difficulty Rogue Special Mode None Game No. 102 Rogue 102 Adventurer 0 Explorer 0 Win Type - Total 5 Types 5/0/0/0/0/0/0/0/0 Lore% 76 Gallery% 60 Achievement% 53 Wizard Run 0 Options --------- ASCII 0 Keyboard 1 Movement Arrows Keybinds 0 Fullscreen 1 Font 18/SmallcapsGlow Map View 76x50 Tactical HUD 1 Map Filters NONE Filters NONE Steam 1 RUN: 5d31a8d9-e5ad-4a00-80f2-a2707ef04a6b